[Event "DVM U12 2021-22"]
[Site "Naumburg"]
[Date "2022.03.28"]
[Round "6"]
[White "Friedrich, Timofej"]
[Black "Shkundin, Maximilian"]
[Result "1/2-1/2"]
[ECO "B23"]
[WhiteElo "1377"]
[BlackElo "1375"]
[Annotator "NA RC"]
[PlyCount "42"]
[EventDate "2022.03.25"]
[EventType "team-tourn"]
[EventRounds "7"]
[EventCountry "GER"]
[SourceTitle "playchess.com"]
[Source "ChessBase"]
[SourceQuality "1"]
[TimeControl "40/5400+30:1800+30"]

1. e4 {[%emt 0:00:03]} c5 {[%emt 0:00:04]} 2. Nc3 {[%emt 0:00:13]} d6 {[%emt 0:00:20]} 3. Bc4 {[%emt 0:01:43]} Nc6 {[%emt 0:01:27]} 4. f4 {[%emt 0:01:34]} e6 {[%emt 0:03:12]} 5. Nf3 {[%emt 0:00:41]} Nge7 {[%emt 0:01:55]} 6. a3 {[%emt 0:03:34]} a6 {[%emt 0:00:09]} 7. Ba2 {[%emt 0:00:26]} b5 {[%emt 0:00:16]} 8. Ne2 {[%emt 0:03:09]} d5 {[%emt 0:03:12]} 9. e5 {[%emt 0:03:46]} h5 {[%emt 0:01:46]} 10. d4 {[%emt 0:08:37]} Nf5 {[%emt 0:00:38]} 11. c3 {[%emt 0:00:26]} c4 {[%emt 0:02:43]} 12. Bb1 {[%emt 0:00:41]} g6 {[%emt 0:00:41]} 13. Bxf5 {[%emt 0:00:57]} gxf5 {[%emt 0:00:11]} 14. h4 {[%emt 0:03:21]} f6 {[%emt 0:05:58]} 15. g3 {[%emt 0:02:21]} Ra7 {[%emt 0:04:39]} 16. Rg1 {[%emt 0:03:30]} Rg7 {[%emt 0:04:17]} 17. Kf2 {[%emt 0:00:48]} Be7 {[%emt 0:01:22]} 18. Rh1 {[%emt 0:06:40]} Kd7 {[%emt 0:00:58]} 19. Qg1 {[%emt 0:08:01]} Rhg8 {[%emt 0:03:53]} 20. Be3 {[%emt 0:02:49]} Qf8 {[%emt 0:04:56]} 21. Bd2 {[%emt 0:04:47]} Rg6 {[%emt 0:03:07]} 1/2-1/2

[Event "DVM U12 2021-22"]
[Site "Naumburg"]
[Date "2022.03.28"]
[Round "6"]
[White "Schäfle, Moritz"]
[Black "Meusel, Theodor"]
[Result "0-1"]
[ECO "A07"]
[WhiteElo "1346"]
[BlackElo "1258"]
[Annotator "COMBH"]
[PlyCount "74"]
[EventDate "2022.03.25"]
[EventType "team-tourn"]
[EventRounds "7"]
[EventCountry "GER"]
[SourceTitle "playchess.com"]
[Source "ChessBase"]
[SourceQuality "1"]
[TimeControl "40/5400+30:1800+30"]

1. Nf3 {[%emt 0:00:01]} d5 {[%emt 0:00:01]} 2. g3 {[%emt 0:00:05]} Nf6 {[%emt 0:00:35]} 3. Bg2 {[%emt 0:00:06]} c6 {[%emt 0:00:24]} 4. O-O {[%emt 0:00:06]} Bg4 {[%emt 0:01:18]} 5. d4 {[%emt 0:00:12]} Nbd7 {[%emt 0:01:47]} 6. c4 {[%emt 0:00:24]} dxc4 {[%emt 0:06:40]} 7. Na3 {[%emt 0:01:45]} Bxf3 {[%emt 0:13:45]} 8. Bxf3 {[%emt 0:00:35]} Nb6 {[%emt 0:00:48]} 9. e4 {[%emt 0:06:04]} e6 {[%emt 0:02:10]} 10. Be3 {[%emt 0:07:42]} c3 {[%emt 0:08:12]} 11. Qb3 {[%emt 0:05:22]} cxb2 {[%emt 0:03:04]} 12. Qxb2 {[%emt 0:00:24]} Be7 {[%emt 0:03:08]} 13. Rab1 {[%emt 0:06:14]} O-O {[%emt 0:11:15]} 14. Nc2 {[%emt 0:04:00]} Qc7 {[%emt 0:06:14]} 15. Rfc1 {[%emt 0:04:44]} Bd8 {[%emt 0:03:15]} 16. Bf4 {[%emt 0:03:42]} Qd7 {[%emt 0:01:18]} 17. Ne3 {[%emt 0:06:41]} Rc8 {[%emt 0:05:17]} 18. a4 {[%emt 0:03:10]} Bc7 {[%emt 0:05:23]} 19. e5 {[%emt 0:05:14]} Nfd5 {[%emt 0:02:44]} 20. a5 {[%emt 0:00:58]} Na4 {[%emt 0:01:40]} 21. Qxb7 {[%emt 0:01:28]} Nac3 {[%emt 0:02:33]} 22. Ra1 {[%emt 0:06:24]} Nxf4 {[%emt 0:03:58]} 23. gxf4 {[%emt 0:11:23]} Qxd4 {[%emt 0:00:34]} 24. Qb2 {[%emt 0:01:48]} Qxf4 {[%emt 0:02:10]} 25. Qxc3 {[%emt 0:06:02]} Qxf3 {[%emt 0:01:16]} 26. Qxc6 {[%emt 0:00:21]} Qxc6 {[%emt 0:00:31]} 27. Rxc6 {[%emt 0:00:04]} Bxe5 {[%emt 0:00:30]} 28. Rac1 {[%emt 0:00:15]} Rxc6 {[%emt 0:00:30]} 29. Rxc6 {[%emt 0:00:01]} h6 {[%emt 0:00:22]} 30. Ra6 {[%emt 0:00:13]} Bd4 {[%emt 0:00:40]} 31. Nc4 {[%emt 0:00:26]} Rd8 {[%emt 0:01:31]} 32. Na3 {[%emt 0:00:33]} Rd5 {[%emt 0:00:19]} 33. Nc2 {[%emt 0:00:49]} Bc5 {[%emt 0:00:27]} 34. Ne3 {[%emt 0:00:20]} Rd6 {[%emt 0:00:19]} 35. Rxd6 {[%emt 0:00:19]} Bxd6 {[%emt 0:00:01]} 36. Nc4 {[%emt 0:00:08]} Bc5 {[%emt 0:00:17]} 37. a6 Kf8 0-1

[Event "DVM U12 2021-22"]
[Site "Naumburg"]
[Date "2022.03.28"]
[Round "6"]
[White "Schimann, Kirill"]
[Black "Zhao, Yunsheng"]
[Result "1/2-1/2"]
[ECO "D00"]
[WhiteElo "1344"]
[BlackElo "1105"]
[Annotator "COMBH"]
[PlyCount "192"]
[EventDate "2022.03.25"]
[EventType "team-tourn"]
[EventRounds "7"]
[EventCountry "GER"]
[SourceTitle "playchess.com"]
[Source "ChessBase"]
[SourceQuality "1"]
[TimeControl "40/5400+30:1800+30"]

1. d4 {[%emt 0:00:02]} d5 {[%emt 0:00:04]} 2. Bf4 {[%emt 0:01:27]} Nf6 {[%emt 0:00:14]} 3. e3 {[%emt 0:00:08]} e6 {[%emt 0:00:14]} 4. Nd2 {[%emt 0:00:18]} Bd6 {[%emt 0:00:28]} 5. Bg3 {[%emt 0:00:11]} Bxg3 {[%emt 0:01:27]} 6. hxg3 {[%emt 0:00:07]} Bd7 {[%emt 0:00:22]} 7. c3 {[%emt 0:00:16]} Nc6 {[%emt 0:00:51]} 8. Ngf3 {[%emt 0:00:21]} h6 {[%emt 0:00:53]} 9. Bd3 {[%emt 0:00:16]} Qe7 {[%emt 0:00:39]} 10. a3 {[%emt 0:01:24]} O-O {[%emt 0:02:02]} 11. Nb3 {[%emt 0:02:42]} b6 {[%emt 0:01:00]} 12. Nbd2 {[%emt 0:02:12]} Rfe8 {[%emt 0:02:06]} 13. O-O {[%emt 0:03:37]} e5 {[%emt 0:02:49]} 14. dxe5 {[%emt 0:01:45]} Nxe5 {[%emt 0:00:43]} 15. Be2 {[%emt 0:01:00]} Nxf3+ {[%emt 0:01:45]} 16. Bxf3 {[%emt 0:03:11]} Rad8 {[%emt 0:01:33]} 17. Qc2 {[%emt 0:00:41]} Ne4 {[%emt 0:01:52]} 18. Rfd1 {[%emt 0:03:00]} Bf5 {[%emt 0:03:19]} 19. Nxe4 {[%emt 0:00:57]} Bxe4 {[%emt 0:01:52]} 20. Bxe4 {[%emt 0:00:13]} Qxe4 {[%emt 0:01:03]} 21. Qxe4 {[%emt 0:00:08]} Rxe4 {[%emt 0:01:06]} 22. Rac1 {[%emt 0:01:33]} c5 {[%emt 0:02:25]} 23. Rc2 {[%emt 0:03:00]} d4 {[%emt 0:03:48]} 24. cxd4 {[%emt 0:00:51]} cxd4 {[%emt 0:00:30]} 25. Rcd2 {[%emt 0:01:32]} d3 {[%emt 0:01:09]} 26. Rxd3 {[%emt 0:00:52]} Rc8 {[%emt 0:01:25]} 27. Rd8+ {[%emt 0:00:06]} Re8 {[%emt 0:00:43]} 28. Rxe8+ {[%emt 0:00:17]} Rxe8 {[%emt 0:00:08]} 29. Kf1 {[%emt 0:00:28]} Kf8 {[%emt 0:00:59]} 30. Rd7 {[%emt 0:00:16]} a6 {[%emt 0:02:27]} 31. Ke2 {[%emt 0:00:49]} Rc8 {[%emt 0:01:04]} 32. Kd3 {[%emt 0:00:22]} Rc5 {[%emt 0:02:47]} 33. Rd6 {[%emt 0:02:50]} Rb5 {[%emt 0:00:55]} 34. b4 {[%emt 0:04:55]} Ke7 {[%emt 0:01:32]} 35. Rd4 {[%emt 0:00:39]} a5 {[%emt 0:02:34]} 36. Kc3 {[%emt 0:01:23]} axb4+ {[%emt 0:01:30]} 37. Rxb4 {[%emt 0:00:24]} Rc5+ {[%emt 0:02:45]} 38. Kb3 {[%emt 0:00:57]} b5 {[%emt 0:01:10]} 39. a4 {[%emt 0:01:13]} bxa4+ {[%emt 0:00:37]} 40. Rxa4 {[%emt 0:01:55]} Rf5 {[%emt 0:01:07]} 41. Re4+ {[%emt 0:31:16]} Kd6 {[%emt 0:37:05]} 42. Rf4 {[%emt 0:00:43]} Rb5+ {[%emt 0:01:41]} 43. Kc3 {[%emt 0:00:20]} Ke6 {[%emt 0:00:59]} 44. Kd3 {[%emt 0:00:42]} g5 {[%emt 0:01:37]} 45. Rc4 {[%emt 0:00:59]} f6 {[%emt 0:04:42]} 46. Rc6+ {[%emt 0:01:43]} Kf7 {[%emt 0:00:46]} 47. f4 {[%emt 0:00:47]} Rb3+ {[%emt 0:02:03]} 48. Ke4 {[%emt 0:01:14]} Rb4+ {[%emt 0:01:05]} 49. Kf3 {[%emt 0:00:19]} Rb1 {[%emt 0:01:25]} 50. Rc7+ {[%emt 0:02:37]} Ke6 {[%emt 0:02:56]} 51. g4 {[%emt 0:00:53]} Rf1+ {[%emt 0:03:15]} 52. Ke2 {[%emt 0:01:17]} Rb1 {[%emt 0:01:57]} 53. Rh7 {[%emt 0:07:32]} Rh1 {[%emt 0:05:49]} 54. Kf3 {[%emt 0:01:44]} Rh4 {[%emt 0:01:25]} 55. g3 {[%emt 0:03:05]} Rh2 {[%emt 0:00:42]} 56. fxg5 {[%emt 0:02:44]} fxg5 {[%emt 0:01:03]} 57. Ke4 {[%emt 0:00:33]} Rh1 {[%emt 0:01:17]} 58. Rh8 {[%emt 0:02:20]} Rh2 {[%emt 0:01:43]} 59. Ra8 {[%emt 0:03:05]} Re2 {[%emt 0:01:34]} 60. Ra6+ {[%emt 0:00:30]} Ke7 {[%emt 0:00:42]} 61. Rxh6 {[%emt 0:00:34]} Ra2 {[%emt 0:01:31]} 62. Kf5 {[%emt 0:01:52]} Ra5+ {[%emt 0:01:19]} 63. Kg6 {[%emt 0:02:00]} Re5 {[%emt 0:00:43]} 64. e4 {[%emt 0:02:19]} Ke6 {[%emt 0:01:52]} 65. Kh5+ {[%emt 0:00:49]} Kf7 {[%emt 0:00:37]} 66. Rg6 {[%emt 0:02:47]} Rxe4 {[%emt 0:00:26]} 67. Rxg5 {[%emt 0:00:25]} Re3 {[%emt 0:00:19]} 68. Rf5+ {[%emt 0:01:44]} Kg7 {[%emt 0:00:26]} 69. Kh4 {[%emt 0:01:02]} Kg6 {[%emt 0:00:37]} 70. Rg5+ {[%emt 0:00:23]} Kf6 {[%emt 0:00:14]} 71. Rc5 {[%emt 0:00:57]} Re6 {[%emt 0:01:24]} 72. g5+ {[%emt 0:01:38]} Kg6 {[%emt 0:00:31]} 73. Kg4 {[%emt 0:00:36]} Re4+ {[%emt 0:00:27]} 74. Kf3 {[%emt 0:00:16]} Ra4 {[%emt 0:00:23]} 75. Re5 {[%emt 0:00:34]} Ra3+ {[%emt 0:02:13]} 76. Re3 {[%emt 0:00:23]} Rxe3+ {[%emt 0:00:21]} 77. Kxe3 {[%emt 0:00:05]} Kxg5 {[%emt 0:00:06]} 78. Kf2 {[%emt 0:00:17]} Kg4 {[%emt 0:00:07]} 79. Kg2 {[%emt 0:00:14]} Kg5 {[%emt 0:00:05]} 80. Kf3 {[%emt 0:00:20]} Kf5 {[%emt 0:00:12]} 81. Ke3 {[%emt 0:00:11]} Kg4 {[%emt 0:00:10]} 82. Kf2 {[%emt 0:00:14]} Kg5 {[%emt 0:00:05]} 83. Kg2 {[%emt 0:00:15]} Kg4 {[%emt 0:00:12]} 84. Kh2 {[%emt 0:00:05]} Kg5 {[%emt 0:00:12]} 85. Kh3 {[%emt 0:00:03]} Kh5 {[%emt 0:00:11]} 86. g4+ {[%emt 0:00:09]} Kg5 {[%emt 0:00:06]} 87. Kg3 {[%emt 0:00:09]} Kg6 {[%emt 0:00:07]} 88. Kf4 {[%emt 0:00:08]} Kf6 {[%emt 0:00:07]} 89. g5+ {[%emt 0:00:05]} Kg6 {[%emt 0:00:04]} 90. Kg4 {[%emt 0:00:03]} Kg7 {[%emt 0:00:11]} 91. Kf5 {[%emt 0:00:12]} Kf7 {[%emt 0:00:06]} 92. g6+ {[%emt 0:00:06]} Kg7 93. Kg5 Kf8 94. Kf6 Kg8 95. Kg5 Kf8 96. g7+ Kg8 1/2-1/2

[Event "DVM U12 2021-22"]
[Site "Naumburg"]
[Date "2022.03.28"]
[Round "6"]
[White "Fadeev, Justin Michael"]
[Black "Dordevic, Tom"]
[Result "0-1"]
[ECO "B43"]
[WhiteElo "1327"]
[BlackElo "1671"]
[Annotator "COMBH"]
[PlyCount "43"]
[EventDate "2022.03.25"]
[EventType "team-tourn"]
[EventRounds "7"]
[EventCountry "GER"]
[SourceTitle "playchess.com"]
[Source "ChessBase"]
[SourceQuality "1"]
[TimeControl "40/5400+30:1800+30"]

1. e4 {[%emt 0:00:01]} c5 {[%emt 0:00:19]} 2. Nf3 {[%emt 0:00:24]} e6 {[%emt 0:00:05]} 3. d4 {[%emt 0:00:40]} cxd4 {[%emt 0:00:12]} 4. Nxd4 {[%emt 0:00:20]} a6 {[%emt 0:00:05]} 5. Nc3 {[%emt 0:00:35]} Qc7 {[%emt 0:00:07]} 6. g3 {[%emt 0:00:36]} b5 {[%emt 0:02:20]} 7. Bg2 {[%emt 0:02:47]} Bb7 {[%emt 0:00:34]} 8. O-O {[%emt 0:01:43]} Nf6 {[%emt 0:01:54]} 9. a3 {[%emt 0:00:56]} d6 {[%emt 0:00:40]} 10. Be3 {[%emt 0:00:50]} Nbd7 {[%emt 0:01:29]} 11. Nb3 {[%emt 0:03:08]} Ne5 {[%emt 0:03:47]} 12. f4 {[%emt 0:07:06]} Nc4 {[%emt 0:02:00]} 13. Bc1 {[%emt 0:00:28]} Rd8 {[%emt 0:08:15]} 14. Qe2 {[%emt 0:03:18]} Be7 {[%emt 0:05:24]} 15. Rd1 {[%emt 0:06:48]} Qb6+ {[%emt 0:33:09]} 16. Kh1 h5 {[%emt 0:03:46]} 17. h3 {[%emt 0:06:49]} Ng4 {[%emt 0:08:12]} 18. Nd4 {[%emt 0:04:22]} e5 {[%emt 0:03:17]} 19. hxg4 {[%emt 0:01:33]} exd4 {[%emt 0:04:02]} 20. Qf2 {[%emt 0:01:19]} hxg4+ {[%emt 0:00:35]} 21. Kg1 {[%emt 0:00:07]} dxc3 {[%emt 0:00:19]} 22. Rd4 {[%emt 0:01:02]} 0-1

[Event "DVM U12 2021-22"]
[Site "Naumburg"]
[Date "2022.03.28"]
[Round "6"]
[White "Gulamzada, Elmir"]
[Black "Wartenberg, Alexander"]
[Result "1-0"]
[ECO "C42"]
[WhiteElo "1291"]
[BlackElo "1639"]
[Annotator "COMBH"]
[PlyCount "89"]
[EventDate "2022.03.25"]
[EventType "team-tourn"]
[EventRounds "7"]
[EventCountry "GER"]
[SourceTitle "playchess.com"]
[Source "ChessBase"]
[SourceQuality "1"]
[TimeControl "40/5400+30:1800+30"]

1. e4 {[%emt 0:00:10]} e5 {[%emt 0:00:06]} 2. Nf3 {[%emt 0:00:23]} Nf6 {[%emt 0:00:09]} 3. Nxe5 {[%emt 0:02:40]} Nc6 {[%emt 0:00:08]} 4. Nxc6 {[%emt 0:00:53]} dxc6 {[%emt 0:00:09]} 5. Nc3 {[%emt 0:01:34]} Bc5 {[%emt 0:01:31]} 6. Be2 {[%emt 0:01:34]} O-O {[%emt 0:01:48]} 7. O-O {[%emt 0:02:08]} Re8 {[%emt 0:00:32]} 8. d3 {[%emt 0:02:14]} Qd6 {[%emt 0:03:01]} 9. Na4 {[%emt 0:07:21]} Bd4 {[%emt 0:02:16]} 10. c3 {[%emt 0:00:18]} Be5 {[%emt 0:00:03]} 11. f4 {[%emt 0:00:53]} Bd4+ {[%emt 0:05:50]} 12. cxd4 {[%emt 0:01:02]} Qxd4+ 13. Kh1 {[%emt 0:00:07]} b6 {[%emt 0:05:16]} 14. Nc3 {[%emt 0:01:22]} Bb7 {[%emt 0:02:37]} 15. Bf3 {[%emt 0:02:37]} Ba6 {[%emt 0:05:45]} 16. e5 {[%emt 0:00:51]} Nd5 {[%emt 0:00:17]} 17. Nxd5 {[%emt 0:02:23]} cxd5 {[%emt 0:00:17]} 18. Qb3 {[%emt 0:00:44]} Rad8 {[%emt 0:00:36]} 19. Re1 {[%emt 0:02:50]} c5 {[%emt 0:00:25]} 20. Be3 {[%emt 0:02:21]} Qxd3 {[%emt 0:00:40]} 21. Be2 {[%emt 0:01:54]} Qxb3 {[%emt 0:02:39]} 22. axb3 {[%emt 0:00:06]} Bxe2 {[%emt 0:00:14]} 23. Rxe2 {[%emt 0:00:21]} d4 {[%emt 0:00:13]} 24. Bf2 {[%emt 0:00:43]} a5 {[%emt 0:00:35]} 25. Rd2 {[%emt 0:02:24]} h6 {[%emt 0:00:46]} 26. Re1 {[%emt 0:03:28]} Re7 {[%emt 0:02:17]} 27. Rde2 {[%emt 0:01:47]} Rde8 {[%emt 0:01:38]} 28. Kg1 {[%emt 0:04:40]} Kh7 {[%emt 0:00:28]} 29. Kf1 {[%emt 0:01:36]} g5 {[%emt 0:02:00]} 30. f5 {[%emt 0:03:24]} Kg8 {[%emt 0:01:01]} 31. e6 {[%emt 0:01:19]} f6 {[%emt 0:01:16]} 32. Bg3 {[%emt 0:00:30]} Rd8 {[%emt 0:00:16]} 33. Rd2 {[%emt 0:01:00]} Rd5 {[%emt 0:01:31]} 34. Rf2 {[%emt 0:03:27]} Kg7 {[%emt 0:01:25]} 35. Bc7 {[%emt 0:05:14]} Kf8 {[%emt 0:05:58]} 36. Bxb6 {[%emt 0:00:13]} Rb7 {[%emt 0:00:09]} 37. Bxa5 {[%emt 0:02:14]} Rxb3 {[%emt 0:00:39]} 38. Bd8 {[%emt 0:09:05]} d3 39. Bxf6 {[%emt 0:01:07]} c4 {[%emt 0:03:33]} 40. Bc3 {[%emt 0:01:01]} Rbb5 41. f6 {[%emt 0:30:49]} Rf5 {[%emt 0:32:23]} 42. e7+ {[%emt 0:00:14]} Ke8 {[%emt 0:00:27]} 43. f7+ {[%emt 0:00:15]} Rxf7 {[%emt 0:00:11]} 44. Rxf7 {[%emt 0:00:28]} d2 {[%emt 0:00:03]} 45. Rf8+ {[%emt 0:00:24]} 1-0

[Event "DVM U12 2021-22"]
[Site "Naumburg"]
[Date "2022.03.28"]
[Round "6"]
[White "Rohatgi, Kushagra"]
[Black "Marinin, Georgii"]
[Result "0-1"]
[ECO "B13"]
[WhiteElo "1243"]
[BlackElo "1293"]
[Annotator "NA RC"]
[PlyCount "84"]
[EventDate "2022.03.25"]
[EventType "team-tourn"]
[EventRounds "7"]
[EventCountry "GER"]
[SourceTitle "playchess.com"]
[Source "ChessBase"]
[SourceQuality "1"]
[TimeControl "40/5400+30:1800+30"]

1. e4 {[%emt 0:00:06]} c6 {[%emt 0:00:02]} 2. d4 {[%emt 0:00:22]} d5 {[%emt 0:00:03]} 3. exd5 {[%emt 0:00:35]} cxd5 {[%emt 0:00:05]} 4. Bd3 {[%emt 0:00:27]} Nc6 {[%emt 0:00:15]} 5. c3 {[%emt 0:00:23]} Nf6 {[%emt 0:00:19]} 6. Bf4 {[%emt 0:00:31]} g6 {[%emt 0:00:47]} 7. Nf3 {[%emt 0:00:59]} Bg7 {[%emt 0:04:04]} 8. Nbd2 {[%emt 0:01:22]} O-O {[%emt 0:02:10]} 9. O-O {[%emt 0:01:23]} Bf5 {[%emt 0:00:37]} 10. Bxf5 {[%emt 0:02:59]} gxf5 {[%emt 0:00:09]} 11. Qc2 {[%emt 0:02:43]} e6 {[%emt 0:00:21]} 12. Ne5 {[%emt 0:01:56]} Nxe5 {[%emt 0:03:01]} 13. Bxe5 {[%emt 0:00:42]} Kh8 {[%emt 0:01:00]} 14. h3 {[%emt 0:03:49]} Rg8 {[%emt 0:00:56]} 15. Nf3 {[%emt 0:04:37]} Ne4 {[%emt 0:02:13]} 16. Bxg7+ {[%emt 0:04:35]} Rxg7 {[%emt 0:00:15]} 17. Nd2 {[%emt 0:02:51]} Qg5 {[%emt 0:00:49]} 18. g3 {[%emt 0:09:09]} Nxd2 {[%emt 0:02:29]} 19. Rfd1 {[%emt 0:01:17]} Ne4 {[%emt 0:00:52]} 20. Qc1 {[%emt 0:02:06]} f4 {[%emt 0:02:10]} 21. Kf1 {[%emt 0:05:39]} fxg3 {[%emt 0:00:18]} 22. Qxg5 {[%emt 0:00:24]} Rxg5 {[%emt 0:00:09]} 23. fxg3 {[%emt 0:00:40]} Rxg3 {[%emt 0:00:08]} 24. Re1 {[%emt 0:03:08]} Rxh3 {[%emt 0:00:13]} 25. Kg2 {[%emt 0:00:59]} Rg3+ {[%emt 0:00:06]} 26. Kh2 {[%emt 0:00:41]} Rag8 {[%emt 0:00:13]} 27. Rg1 {[%emt 0:01:01]} Rxg1 {[%emt 0:00:07]} 28. Rxg1 {[%emt 0:00:13]} Rxg1 {[%emt 0:00:05]} 29. Kxg1 {[%emt 0:00:11]} h5 {[%emt 0:00:10]} 30. Kh2 {[%emt 0:00:28]} f5 {[%emt 0:00:06]} 31. Kg2 {[%emt 0:01:00]} Kg7 {[%emt 0:00:07]} 32. Kh3 {[%emt 0:01:14]} Kg6 {[%emt 0:00:03]} 33. Kh4 {[%emt 0:01:08]} f4 {[%emt 0:00:07]} 34. Kh3 {[%emt 0:00:42]} f3 {[%emt 0:00:05]} 35. Kh2 {[%emt 0:00:59]} f2 {[%emt 0:00:04]} 36. Kg2 {[%emt 0:00:14]} h4 {[%emt 0:00:07]} 37. Kf1 {[%emt 0:00:38]} h3 {[%emt 0:00:05]} 38. b4 {[%emt 0:00:42]} h2 {[%emt 0:00:04]} 39. Kg2 {[%emt 0:00:56]} h1=Q+ {[%emt 0:00:06]} 40. Kxh1 {[%emt 0:00:13]} f1=Q+ {[%emt 0:00:05]} 41. Kh2 {[%emt 0:30:36]} Qf2+ {[%emt 0:30:06]} 42. Kh1 {[%emt 0:00:20]} Ng3# 0-1

[Event "DVM U12 2021-22"]
[Site "Naumburg"]
[Date "2022.03.28"]
[Round "6"]
[White "Moldovan, Stela"]
[Black "Eichner, Tim"]
[Result "1-0"]
[ECO "D02"]
[WhiteElo "1209"]
[BlackElo "1460"]
[Annotator "NA RC"]
[PlyCount "85"]
[EventDate "2022.03.25"]
[EventType "team-tourn"]
[EventRounds "7"]
[EventCountry "GER"]
[SourceTitle "playchess.com"]
[Source "ChessBase"]
[SourceQuality "1"]
[TimeControl "40/5400+30:1800+30"]

1. d4 {[%emt 0:00:04]} d5 {[%emt 0:00:02]} 2. Nf3 {[%emt 0:00:07]} Bf5 {[%emt 0:01:02]} 3. e3 {[%emt 0:00:13]} e6 {[%emt 0:00:16]} 4. Bd3 {[%emt 0:00:16]} Bg6 {[%emt 0:01:35]} 5. Nbd2 {[%emt 0:01:01]} Nf6 {[%emt 0:00:55]} 6. Ne5 {[%emt 0:00:55]} c5 {[%emt 0:01:34]} 7. b3 {[%emt 0:00:14]} Nbd7 {[%emt 0:03:51]} 8. Bb2 {[%emt 0:00:48]} Rc8 {[%emt 0:02:28]} 9. Bb5 {[%emt 0:02:12]} a6 {[%emt 0:01:19]} 10. Bxd7+ {[%emt 0:00:06]} Nxd7 {[%emt 0:00:14]} 11. O-O {[%emt 0:00:21]} Bd6 {[%emt 0:01:15]} 12. f4 {[%emt 0:00:12]} Nf6 {[%emt 0:00:31]} 13. Rc1 {[%emt 0:00:26]} b5 {[%emt 0:01:28]} 14. c4 {[%emt 0:01:09]} b4 {[%emt 0:00:21]} 15. Qf3 {[%emt 0:03:10]} Be4 {[%emt 0:01:48]} 16. Nxe4 {[%emt 0:01:11]} Nxe4 {[%emt 0:00:17]} 17. Qh5 {[%emt 0:00:54]} O-O {[%emt 0:01:30]} 18. Rf3 {[%emt 0:03:22]} f6 {[%emt 0:02:32]} 19. Ng4 {[%emt 0:02:34]} f5 {[%emt 0:00:13]} 20. Ne5 {[%emt 0:00:24]} Bxe5 {[%emt 0:00:14]} 21. fxe5 {[%emt 0:00:52]} g6 {[%emt 0:00:07]} 22. Qh6 {[%emt 0:02:33]} Rf7 {[%emt 0:03:33]} 23. cxd5 {[%emt 0:01:02]} Qxd5 {[%emt 0:00:59]} 24. Rff1 {[%emt 0:01:14]} Rfc7 {[%emt 0:04:01]} 25. h4 {[%emt 0:01:01]} cxd4 {[%emt 0:00:41]} 26. exd4 {[%emt 0:00:16]} Rxc1 {[%emt 0:00:18]} 27. Rxc1 {[%emt 0:00:21]} Rc6 {[%emt 0:05:53]} 28. Qe3 {[%emt 0:04:00]} Kg7 {[%emt 0:00:56]} 29. Qe1 {[%emt 0:00:23]} a5 {[%emt 0:00:44]} 30. Qe3 {[%emt 0:03:08]} h6 {[%emt 0:00:46]} 31. a3 {[%emt 0:01:42]} g5 {[%emt 0:05:14]} 32. hxg5 {[%emt 0:02:03]} hxg5 {[%emt 0:01:25]} 33. Rxc6 {[%emt 0:02:22]} Qxc6 {[%emt 0:00:41]} 34. axb4 {[%emt 0:01:18]} axb4 {[%emt 0:00:12]} 35. Qc1 {[%emt 0:01:05]} Qd5 {[%emt 0:11:29]} 36. Qc4 {[%emt 0:02:15]} Nd2 {[%emt 0:03:28]} 37. Qxb4 {[%emt 0:00:52]} Nxb3 {[%emt 0:01:32]} 38. Qe7+ {[%emt 0:00:13]} Kg6 {[%emt 0:00:26]} 39. Qf6+ Kh5 {[%emt 0:00:22]} 40. Qh8+ {[%emt 0:01:00]} Kg4 {[%emt 0:00:15]} 41. Qh3+ {[%emt 0:30:21]} Kf4 {[%emt 0:30:01]} 42. Kf2 {[%emt 0:01:53]} g4 {[%emt 0:04:42]} 43. Qe3# 1-0